bitfinex/quotes_SOLUSD_20260309
["timestamp","ask_amount","ask_price","bid_price","bid_amount"]
[1773034066362,2.70131808,83.478,83.454,11.98264912]
[1773034066753,2.70131808,83.478,83.433,4.82477569]
[1773034066754,4.40869229,83.46,83.435,4.35924948]
[1773034066953,2.70131808,83.469,83.435,4.35924948]
[1773034067153,2.70131808,83.459,83.435,4.35924948]
[1773034067568,11.97907861,83.479,83.441,4.35924948]
[1773034067767,2.70131808,83.478,83.441,4.35924948]
[1773034068270,4.40869229,83.47,83.443,4.35924948]
[1773034069573,4.41182289,83.47,83.443,4.35924948]
[1773034070779,4.41182289,83.47,83.444,11.98408513]
[1773034071071,11.9793476,83.477,83.445,4.35924948]
[1773034071269,2.70131808,83.487,83.451,4.35924948]
[1773034071458,4.41182289,83.48,83.451,4.35924948]
[1773034073077,14.68037868,83.479,83.453,4.35924948]
[1773034073281,2.70131808,83.478,83.453,4.35924948]
[1773034073774,4.41182289,83.47,83.453,4.35924948]
[1773034075169,2.70131808,83.478,83.455,4.35924948]
[1773034075370,4.41182289,83.48,83.455,4.35924948]
[1773034075762,4.41182289,83.49,83.455,4.35924948]
[1773034076184,2.70131808,83.479,83.455,4.35924948]
[1773034077091,4.41182289,83.48,83.455,4.35924948]
[1773034077679,4.41182289,83.48,83.457,4.35924948]
[1773034078560,2.70131808,83.491,83.457,4.35924948]
[1773034078759,11.97730918,83.492,83.457,4.35924948]
[1773034078968,4.41182289,83.49,83.457,4.35924948]
[1773034079860,4.41182289,83.49,83.456,41.93826686]
[1773034079861,4.41182289,83.49,83.459,4.35924948]
[1773034080568,11.97762579,83.489,83.459,4.35924948]
[1773034081657,2.70131808,83.479,83.447,4.35924948]
[1773034081858,4.41182289,83.47,83.448,4.35924948]
[1773034082259,4.41182289,83.48,83.448,4.35924948]
[1773034083079,2.70131808,83.492,83.451,4.29950628]
[1773034083385,4.41182289,83.49,83.451,4.29950628]
[1773034083882,11.97662239,83.496,83.453,4.29950628]
[1773034084075,4.41182289,83.49,83.453,4.29950628]
[1773034085266,0.759,83.509,83.471,4.29950628]
[1773034085469,0.759,83.509,83.452,41.94027703]
[1773034085470,0.759,83.509,83.481,4.29950628]
[1773034085964,0.759,83.509,83.482,11.97863012]
[1773034086270,0.759,83.509,83.483,4.29950628]
[1773034086465,4.41182289,83.51,83.483,4.29950628]
[1773034086871,2.70131808,83.519,83.483,4.29950628]
[1773034087279,4.41182289,83.51,83.483,4.29950628]
[1773034087468,2.70131808,83.519,83.483,4.29950628]
[1773034088872,4.41182289,83.51,83.485,4.0521054]
[1773034090571,4.41182289,83.53,83.491,4.0521054]
[1773034090880,4.41182289,83.53,83.503,4.0521054]
[1773034091589,11.97189,83.529,83.503,4.0521054]
[1773034091885,2.70131808,83.509,83.471,4.0521054]
[1773034092184,4.41182289,83.49,83.469,11.98036681]
[1773034092370,4.41182289,83.49,83.47,4.0521054]
[1773034092570,4.41182289,83.5,83.47,4.0521054]
[1773034092768,41.901615,83.529,83.47,4.0521054]
[1773034092769,4.41182289,83.51,83.473,4.0521054]
[1773034093069,4.41182289,83.51,83.481,4.0521054]
[1773034093473,2.70131808,83.517,83.481,4.0521054]
[1773034094081,11.97339154,83.519,83.481,4.0521054]
[1773034094688,14.67470962,83.519,83.481,4.0521054]
[1773034094871,4.41182289,83.51,83.483,4.0521054]
[1773034096387,2.70131808,83.499,83.47,4.0521054]
[1773034096585,4.41182289,83.49,83.463,16.0334624]
[1773034096791,4.41182289,83.49,83.464,4.0521054]
[1773034097080,4.41182289,83.49,83.463,11.981357]
[1773034097081,4.41182289,83.49,83.465,16.0331753]
[1773034097281,4.41182289,83.49,83.466,4.0521054]
[1773034099766,11.97608011,83.5,83.468,4.0521054]
[1773034099985,4.41182289,83.51,83.471,4.0521054]
[1773034100593,4.41182289,83.5,83.471,4.0521054]
[1773034102193,16.38655879,83.51,83.473,4.0521054]
[1773034102393,4.41182289,83.53,83.491,4.0521054]
[1773034102591,4.41182289,83.54,83.511,4.0521054]
[1773034102896,2.70131808,83.549,83.511,4.0521054]
[1773034102897,14.67040004,83.549,83.511,4.0521054]
[1773034103085,4.41182289,83.54,83.511,4.0521054]
[1773034104098,2.70131808,83.549,83.513,4.0521054]
[1773034104605,0.1,83.56,83.531,4.0521054]
[1773034105097,0.1,83.56,83.541,4.0521054]
[1773034105598,0.1,83.56,83.551,4.0521054]
[1773034106183,0.1,83.56,83.553,4.0521054]
[1773034106398,0.1,83.56,83.532,4.0521054]
[1773034107901,0.1,83.56,83.534,4.0521054]
[1773034108505,0.1,83.56,83.541,4.0521054]
[1773034109087,0.1,83.56,83.543,4.0521054]
[1773034109290,4.51182289,83.56,83.536,4.0521054]
[1773034109712,0.1,83.56,83.536,4.0521054]
[1773034110107,16.47784856,83.57,83.54,4.41182289]
[1773034110108,4.51182289,83.57,83.54,4.41182289]
[1773034110308,0.1,83.57,83.541,4.0521054]
[1773034110902,0.1,83.57,83.551,4.0521054]
[1773034111302,0.1,83.57,83.553,4.0521054]
[1773034112704,0.1,83.57,83.555,4.0521054]
[1773034114811,0.1,83.57,83.557,4.19672881]
[1773034116314,2.89931808,83.569,83.537,4.19672881]
[1773034116517,2.89931808,83.559,83.527,4.19672881]
[1773034117423,2.89931808,83.559,83.52,4.41182289]
[1773034117424,2.89931808,83.559,83.528,41.90211665]
[1773034117610,2.89931808,83.559,83.529,4.19672881]
[1773034117811,4.41182289,83.56,83.529,4.19672881]
[1773034118217,2.89931808,83.559,83.529,4.19672881]
[1773034119617,2.89931808,83.559,83.53,41.90111336]
[1773034119821,2.89931808,83.559,83.531,4.19672881]
[1773034120219,4.41182289,83.56,83.531,4.19672881]
[1773034121029,4.51182289,83.57,83.541,4.19672881]
[1773034121720,0.1,83.57,83.541,4.19672881]
[1773034122108,0.1,83.57,83.551,4.19672881]
[1773034122524,0.1,83.58,83.561,4.19672881]
[1773034122924,2.89931808,83.578,83.547,4.19672881]
[1773034123220,2.89931808,83.578,83.549,4.19672881]
[1773034123614,2.89931808,83.578,83.551,4.19672881]
[1773034124526,4.51182289,83.58,83.553,4.19672881]
[1773034126330,0.1,83.59,83.563,4.19672881]
[1773034126528,0.1,83.59,83.571,4.19672881]
[1773034127126,4.51182289,83.6,83.572,4.19672881]
[1773034127127,0.1,83.6,83.572,4.19672881]
[1773034127514,2.89931808,83.633,83.591,4.19672881]
[1773034127708,2.89931808,83.633,83.572,4.82477569]
[1773034127709,4.51182289,83.64,83.602,4.19672881]
[1773034127929,2.89931808,83.629,83.602,4.19672881]
[1773034128317,2.89931808,83.619,83.591,4.19672881]
[1773034128638,2.89931808,83.619,83.58,4.41182289]
[1773034128639,2.89931808,83.619,83.593,4.19672881]
[1773034129634,2.89931808,83.619,83.594,11.96258104]
[1773034130130,2.89931808,83.617,83.593,4.19672881]
[1773034130326,2.89931808,83.617,83.589,11.96318904]
[1773034130327,4.39617551,83.61,83.589,11.96318904]
[1773034130536,2.89931808,83.609,83.589,11.96318904]
[1773034130714,2.89931808,83.599,83.57,4.19672881]
[1773034131033,2.89931808,83.599,83.564,4.19672881]
[1773034131034,4.39617551,83.59,83.564,4.19672881]
[1773034131617,2.89931808,83.599,83.566,4.19672881]
[1773034132017,4.39617551,83.6,83.566,4.19672881]
[1773034132218,2.89931808,83.635,83.591,4.19672881]
[1773034132418,4.39617551,83.62,83.591,4.19672881]
[1773034132618,2.89931808,83.619,83.591,4.19672881]
[1773034132834,4.39617551,83.61,83.571,4.19672881]
[1773034133546,4.39617551,83.61,83.572,41.88005551]
[1773034133716,4.39617551,83.61,83.573,4.19672881]
[1773034133914,4.39617551,83.61,83.563,33.4]
[1773034133915,2.89931808,83.579,83.544,4.19672881]
[1773034134637,4.39617551,83.57,83.544,4.19672881]
[1773034134824,7.29549359,83.57,83.544,4.19672881]
[1773034135019,4.39617551,83.56,83.543,11.96988377]
[1773034135526,7.29549359,83.57,83.543,11.96988377]
[1773034136444,4.39617551,83.56,83.543,11.96988377]
[1773034136821,4.39617551,83.56,83.537,4.19672881]
[1773034137039,4.39617551,83.56,83.543,11.96988377]
[1773034137638,2.89931808,83.57,83.544,4.19672881]
[1773034137918,4.39617551,83.58,83.544,4.19672881]
[1773034138138,4.39617551,83.57,83.544,4.19672881]
[1773034139843,4.39617551,83.57,83.546,4.19672881]
[1773034140756,29.90115928,83.609,83.561,4.19672881]
[1773034140922,4.39617551,83.6,83.561,4.19672881]
[1773034141439,7.29549359,83.58,83.552,4.19672881]
[1773034141645,2.89931808,83.579,83.552,4.19672881]
[1773034141825,11.96487113,83.578,83.552,4.19672881]
[1773034142026,11.96487113,83.578,83.552,16.16518021]
[1773034142234,7.29549359,83.57,83.545,4.19672881]
[1773034142425,2.89931808,83.569,83.538,4.19672881]
[1773034142740,2.89931808,83.569,83.543,11.96988377]
[1773034143532,4.39617551,83.56,83.543,11.96988377]
[1773034144041,4.39617551,83.56,83.531,4.26248217]
[1773034144444,16.36371417,83.56,83.537,11.97062197]
[1773034146634,29.91217784,83.578,83.543,4.26248217]
[1773034146635,2.89931808,83.577,83.543,4.26248217]
[1773034146829,4.39617551,83.57,83.543,4.26248217]
[1773034147839,4.39617551,83.55,83.53,4.26248217]
[1773034148248,4.39617551,83.55,83.531,4.26248217]
[1773034148442,2.89931808,83.559,83.531,4.26248217]
[1773034149531,4.39617551,83.56,83.531,4.26248217]
[1773034149831,4.39617551,83.56,83.533,4.37233029]
[1773034150340,4.39617551,83.56,83.512,4.82477569]
[1773034150341,2.89931808,83.549,83.525,4.37233029]
[1773034150543,41.88657116,83.559,83.507,29.93760597]
[1773034150544,2.89931808,83.539,83.511,11.97447042]
[1773034150725,4.39617551,83.53,83.511,11.97447042]
[1773034151446,4.39617551,83.53,83.506,4.37233029]
[1773034152049,4.39617551,83.53,83.508,4.37233029]
[1773034153050,4.39617551,83.52,83.508,4.37233029]
[1773034153352,4.39617551,83.52,83.496,4.37233029]
[1773034153648,4.39617551,83.51,83.496,4.37233029]
[1773034154035,4.39617551,83.51,83.496,16.34891353]
[1773034154230,4.39617551,83.52,83.497,4.37233029]
[1773034156041,4.39617551,83.51,83.49,4.37233029]
[1773034156746,4.39617551,83.51,83.484,4.37233029]
[1773034158742,16.37079095,83.51,83.485,11.97819967]
[1773034159054,4.39617551,83.5,83.486,4.37233029]
[1773034159252,4.39617551,83.51,83.486,4.37233029]
[1773034160855,4.39617551,83.51,83.488,4.37233029]
[1773034161278,4.39617551,83.52,83.488,4.37233029]
[1773034162956,4.39617551,83.53,83.493,4.37233029]
[1773034163370,4.39617551,83.52,83.493,4.37233029]
[1773034163552,4.39617551,83.53,83.493,4.37233029]
[1773034164947,11.97189,83.529,83.495,4.37233029]
[1773034165358,4.39617551,83.53,83.495,4.37233029]
[1773034166063,2.89931808,83.529,83.495,4.37233029]
[1773034166273,4.39617551,83.52,83.495,4.37233029]
[1773034166453,4.39617551,83.51,83.495,4.37233029]
[1773034167160,7.29549359,83.52,83.496,16.34895192]
[1773034168266,7.29549359,83.52,83.497,4.37233029]
[1773034169266,7.29549359,83.52,83.498,11.97633476]
[1773034170059,7.29549359,83.52,83.498,16.34866505]
[1773034170466,4.39617551,83.52,83.499,4.37233029]
[1773034173072,4.39617551,83.52,83.5,11.9760479]
[1773034173365,4.39617551,83.52,83.501,4.14308218]
[1773034174656,4.39617551,83.52,83.503,4.14308218]
[1773034175875,2.89931808,83.519,83.502,11.97576105]
[1773034176779,2.89931808,83.519,83.497,11.97647819]
[1773034178057,2.89931808,83.509,83.488,4.14308218]
[1773034178268,2.89931808,83.509,83.482,4.14308218]
[1773034178773,4.39617551,83.51,83.482,4.14308218]
[1773034179978,7.29549359,83.51,83.484,4.14308218]
[1773034180775,2.89931808,83.509,83.484,4.14308218]
[1773034181077,4.39617551,83.51,83.484,4.14308218]
[1773034181388,2.89931808,83.499,83.477,4.14308218]
[1773034181767,4.39617551,83.5,83.477,4.14308218]
[1773034182168,4.39617551,83.5,83.479,4.14308218]
[1773034183254,29.93748447,83.508,83.461,4.14308218]
[1773034183474,2.89931808,83.489,83.462,4.14308218]
[1773034184176,4.39617551,83.52,83.452,29.95719983]
[1773034184177,7.29549359,83.51,83.481,4.14308218]
[1773034184475,11.97231999,83.526,83.471,4.14308218]
[1773034184476,4.39617551,83.5,83.471,4.14308218]
[1773034184671,7.29549359,83.5,83.471,4.14308218]
[1773034185282,2.89931808,83.499,83.464,4.14308218]
[1773034186280,29.93057761,83.527,83.452,4.82477569]
[1773034186281,7.29549359,83.51,83.481,4.14308218]
[1773034186668,2.89931808,83.509,83.481,4.14308218]
[1773034187074,4.39617551,83.5,83.481,4.14308218]
[1773034188062,7.29549359,83.5,83.466,4.14308218]
[1773034188665,11.97619133,83.499,83.468,4.14308218]
[1773034188877,14.87550941,83.499,83.468,4.14308218]
[1773034189265,2.89931808,83.499,83.468,4.14308218]
[1773034189662,4.39617551,83.49,83.468,4.14308218]
[1773034189861,2.89931808,83.499,83.468,4.14308218]
[1773034190570,4.39617551,83.5,83.468,4.14308218]
[1773034190880,4.39617551,83.51,83.471,4.14308218]
[1773034191266,4.39617551,83.52,83.481,4.14308218]
[1773034191664,7.30675854,83.52,83.481,4.14308218]
[1773034191984,4.40744046,83.52,83.481,4.14308218]
[1773034192981,4.40744046,83.51,83.483,4.14308218]
[1773034195283,4.40744046,83.56,83.485,4.14308218]
[1773034195284,4.40744046,83.52,83.485,4.14308218]
[1773034197458,2.89931808,83.525,83.485,4.14308218]
[1773034197664,4.40744046,83.52,83.487,4.14308218]
[1773034199584,4.40744046,83.52,83.491,4.14308218]
[1773034199765,233.2740841,83.981,83.501,4.14308218]
[1773034199766,4.40744046,83.54,83.501,4.14308218]
[1773034199959,104.5,83.597,83.488,41.92219241]
[1773034199960,4.40744046,83.55,83.511,4.14308218]
[1773034200490,2.89931808,83.553,83.52,4.40744046]
[1773034200674,63.5173571,83.58,83.54,4.40744046]
[1773034200675,2.89931808,83.577,83.54,4.40744046]
[1773034200870,4.40744046,83.58,83.541,4.14308218]
[1773034201264,7.30675854,83.58,83.541,4.14308218]
[1773034201477,2.89931808,83.579,83.541,4.14308218]
[1773034201674,2.89931808,83.559,83.523,4.14308218]
[1773034201960,4.40744046,83.55,83.526,4.14308218]
[1773034202160,2.89931808,83.549,83.525,11.97246333]
[1773034202680,4.40744046,83.54,83.515,11.9738453]
[1773034202880,2.89931808,83.529,83.498,4.14308218]
[1773034203084,4.40744046,83.52,83.498,4.14308218]
[1773034203272,4.40744046,83.52,83.5,4.40221103]
[1773034203977,4.40744046,83.51,83.493,4.40221103]
[1773034204175,4.40744046,83.51,83.485,4.40221103]
[1773034204176,2.89931808,83.509,83.485,4.40221103]
[1773034204683,2.89931808,83.509,83.466,3.69383402]
[1773034204684,2.89931808,83.499,83.461,4.40221103]
[1773034204888,4.40744046,83.52,83.462,11.98150056]
[1773034204889,2.89931808,83.489,83.462,11.98150056]
[1773034205272,4.40744046,83.49,83.463,4.40221103]
[1773034205781,11.81276619,83.49,83.463,4.40221103]
[1773034206082,11.81276619,83.49,83.465,4.40221103]
[1773034206879,2.89931808,83.489,83.464,11.98121345]
[1773034207182,11.81276619,83.48,83.464,4.40221103]
[1773034207570,2.89931808,83.489,83.464,4.40221103]
[1773034207792,2.89931808,83.489,83.459,11.98185752]
[1773034208081,11.81276619,83.48,83.456,16.38451681]
[1773034208285,11.81276619,83.48,83.457,4.40221103]
[1773034210102,11.81276619,83.48,83.459,4.11338873]
[1773034210765,2.89931808,83.509,83.471,4.11338873]
[1773034210968,11.81276619,83.51,83.471,4.11338873]
[1773034211186,11.81276619,83.49,83.471,4.11338873]
[1773034211377,11.81276619,83.49,83.461,4.11338873]
[1773034211777,11.81276619,83.48,83.454,11.98264912]
[1773034212085,11.81276619,83.5,83.461,4.11338873]
[1773034212277,3.69383402,83.572,83.454,41.93927193]
[1773034212278,2.89931808,83.515,83.471,4.11338873]
[1773034212481,11.81276619,83.51,83.471,4.11338873]
[1773034212671,11.81276619,83.51,83.47,11.81276619]
[1773034212672,11.81276619,83.51,83.481,4.11338873]
[1773034213985,11.81276619,83.52,83.482,11.97863012]
[1773034214189,11.81276619,83.51,83.483,4.11338873]
[1773034214980,2.89931808,83.509,83.483,4.11338873]
[1773034215185,11.81276619,83.5,83.483,4.11338873]
[1773034215374,11.81276619,83.51,83.483,4.11338873]
[1773034219297,11.81276619,83.51,83.485,4.11338873]
[1773034220176,2.89931808,83.509,83.484,11.97834315]
[1773034220374,11.81276619,83.51,83.485,4.11338873]
[1773034220580,11.81276619,83.52,83.486,4.11338873]
[1773034220777,15.48608425,83.53,83.491,4.11338873]
[1773034220983,11.81276619,83.52,83.491,4.11338873]
[1773034221381,11.81276619,83.52,83.49,11.81276619]
[1773034221382,11.81276619,83.52,83.493,4.11338873]
[1773034221897,2.89931808,83.509,83.476,4.11338873]
[1773034222280,11.81276619,83.5,83.476,4.11338873]
[1773034223886,11.81276619,83.49,83.477,11.9793476]
[1773034224392,2.89931808,83.499,83.477,11.9793476]
[1773034224594,11.81276619,83.49,83.477,11.9793476]
[1773034224899,2.89931808,83.499,83.477,11.9793476]
[1773034225686,2.89931808,83.499,83.463,29.95304393]
[1773034225687,2.89931808,83.499,83.471,4.11338873]
[1773034225887,11.81276619,83.49,83.47,11.98035222]
[1773034227106,0.28432314,83.519,83.47,11.98035222]
[1773034227107,3.49210635,83.635,83.491,6.25188207]
[1773034227278,4.3170947,83.62,83.56,11.81276619]
[1773034227600,4.3170947,83.597,83.561,4.11338873]
[1773034227779,4.3170947,83.597,83.551,15.11067069]
[1773034227780,4.3170947,83.589,83.55,4.11338873]
[1773034227982,4.398233,83.57,83.541,16.08355906]
[1773034228198,4.398233,83.57,83.542,4.11338873]
[1773034228396,4.3170947,83.579,83.542,4.11338873]
[1773034228588,4.398233,83.58,83.542,4.11338873]
[1773034229594,11.78700048,83.58,83.544,4.11338873]
[1773034229799,11.9642723,83.583,83.544,4.11338873]
[1773034229800,11.78700048,83.57,83.544,4.11338873]
[1773034230000,4.3170947,83.569,83.535,4.11338873]
[1773034230590,11.78700048,83.57,83.535,4.11338873]
[1773034231306,16.10409518,83.57,83.533,4.11338873]
[1773034232185,16.10409518,83.57,83.541,4.11338873]
[1773034232902,4.27124056,83.569,83.541,4.11338873]
[1773034233288,11.78700048,83.55,83.527,11.97208881]
[1773034233501,11.78700048,83.55,83.522,11.97286192]
[1773034233502,4.27124056,83.549,83.522,11.97286192]
[1773034234306,4.27124056,83.559,83.531,11.97160335]
[1773034234509,4.27124056,83.576,83.54,11.78700048]
[1773034234806,11.78700048,83.56,83.531,41.90061174]
[1773034235008,4.27124056,83.569,83.531,41.90061174]
[1773034235305,4.27124056,83.569,83.532,4.48987687]
[1773034235809,4.27124056,83.559,83.533,11.97131672]
[1773034236991,11.78700048,83.57,83.541,4.48987687]
[1773034237186,11.78700048,83.58,83.541,4.48987687]
[1773034238713,11.96472798,83.579,83.542,11.97002705]
[1773034239006,16.23596854,83.579,83.543,4.48987687]
[1773034239214,4.27124056,83.578,83.543,4.48987687]
[1773034239905,4.27124056,83.586,83.543,4.48987687]
[1773034240096,11.78700048,83.58,83.551,4.48987687]
[1773034240296,4.27124056,83.579,83.551,4.48987687]
[1773034241614,4.27124056,83.579,83.552,16.45847127]
[1773034242314,4.27124056,83.577,83.546,11.96944531]
[1773034242616,4.27124056,83.569,83.541,11.9700633]
[1773034242813,4.27124056,83.569,83.537,11.9707435]
[1773034243115,4.27124056,83.569,83.538,4.48987687]
[1773034243320,4.27124056,83.569,83.539,16.46033378]
[1773034243500,4.27124056,83.569,83.54,4.48987687]
[1773034244417,4.27124056,83.567,83.54,4.48987687]
[1773034245019,11.78700048,83.56,83.54,4.48987687]
[1773034245205,4.27124056,83.559,83.534,11.9710581]
[1773034245595,11.78700048,83.55,83.534,11.9710581]
[1773034245802,4.27124056,83.549,83.522,16.46277023]
[1773034245995,4.27124056,83.539,83.511,16.46434729]
[1773034246212,4.27124056,83.539,83.511,11.97447042]
[1773034246501,4.27124056,83.539,83.512,4.48987687]
[1773034248427,11.78700048,83.55,83.514,4.48987687]
[1773034248608,11.78700048,83.55,83.521,4.48987687]
[1773034248922,16.05824104,83.56,83.521,4.48987687]
[1773034249421,16.05824104,83.56,83.53,11.78700048]
[1773034249617,11.78700048,83.56,83.531,4.48987687]
[1773034249823,11.78700048,83.56,83.53,11.78700048]
[1773034249824,11.78700048,83.54,83.514,4.48987687]
[1773034250425,11.78700048,83.54,83.492,0.28432314]
[1773034250427,7.63937382,83.578,83.52,11.78700048]
[1773034250602,0.1,83.64,83.58,11.78700048]
[1773034250603,4.27124056,83.616,83.58,11.78700048]
[1773034250806,4.27124056,83.629,83.591,4.48987687]
[1773034252021,4.27124056,83.619,83.581,4.48987687]
[1773034252520,11.78700048,83.62,83.583,4.48987687]
[1773034252699,11.78700048,83.62,83.591,4.48987687]
[1773034252905,16.05824104,83.62,83.591,4.48987687]
[1773034253622,16.04626821,83.62,83.591,4.48987687]
[1773034253826,4.27124056,83.62,83.591,4.48987687]
[1773034254217,4.27124056,83.619,83.591,4.48987687]
[1773034255025,4.27124056,83.619,83.583,4.48987687]
[1773034255218,4.27124056,83.609,83.58,11.77502765]
[1773034255422,11.95914755,83.618,83.56,4.89057887]
[1773034255423,4.27124056,83.599,83.565,4.48987687]
[1773034255809,4.27124056,83.599,83.57,11.77502765]
[1773034256723,4.27124056,83.599,83.565,46.37336045]
[1773034256926,4.27124056,83.599,83.565,16.45652925]
[1773034257226,4.27124056,83.598,83.565,16.45652925]
[1773034257730,4.27124056,83.598,83.566,4.48987687]
[1773034258713,4.27124056,83.598,83.567,11.96644608]
[1773034258913,4.27124056,83.598,83.57,11.77502765]
[1773034259319,4.27124056,83.596,83.567,16.45632295]
[1773034259835,4.27124056,83.596,83.568,4.48987687]
[1773034260228,4.27124056,83.589,83.561,11.96730532]
[1773034261138,4.27124056,83.597,83.562,4.48987687]
[1773034261738,16.04626821,83.59,83.562,4.48987687]
[1773034262719,4.27124056,83.589,83.562,4.48987687]
[1773034263040,4.4301434,83.599,83.571,4.22287631]
[1773034263243,4.4301434,83.599,83.573,4.22287631]
[1773034263619,4.4301434,83.597,83.565,4.22287631]
[1773034264335,4.4301434,83.597,83.571,4.22287631]
[1773034266039,4.4301434,83.597,83.573,4.22287631]
[1773034266425,11.77502765,83.61,83.573,4.22287631]
[1773034266630,16.20517105,83.61,83.573,4.22287631]
[1773034267030,4.4301434,83.609,83.573,4.22287631]
[1773034269049,4.4301434,83.609,83.575,4.32786258]
[1773034271029,4.4301434,83.609,83.577,4.32786258]
[1773034271365,4.17854858,83.607,83.577,4.32786258]
[1773034272631,11.96057793,83.608,83.577,4.32786258]
[1773034272834,4.17854858,83.615,83.591,4.32786258]
[1773034273033,11.95869835,83.622,83.591,4.32786258]
[1773034273229,4.17854858,83.622,83.593,4.32786258]
[1773034273538,4.17854858,83.628,83.593,4.32786258]
[1773034273737,4.17854858,83.628,83.6,11.77502765]
[1773034273932,4.17854858,83.628,83.601,4.32786258]
[1773034274861,0.1,83.64,83.611,4.32786258]
[1773034275032,0.1,83.64,83.621,4.32786258]
[1773034275233,0.1,83.64,83.623,4.32786258]
[1773034275450,0.1,83.64,83.631,4.32786258]
[1773034275826,3.04454986,83.657,83.631,4.32786258]
[1773034276351,4.17854858,83.669,83.632,4.32786258]
[1773034276934,4.17854858,83.669,83.63,11.77502765]
[1773034277335,4.17854858,83.669,83.622,41.85501422]
[1773034277336,4.17854858,83.649,83.622,29.89643873]
[1773034277537,4.17854858,83.649,83.617,4.32786258]
[1773034277743,4.17854858,83.649,83.62,11.77502765]
[1773034277973,4.17854858,83.649,83.621,4.32786258]
[1773034278335,4.17854858,83.667,83.64,11.77502765]
[1773034278660,4.17854858,83.667,83.64,16.10289023]
[1773034279357,4.17854858,83.649,83.62,11.77502765]
[1773034279545,4.17854858,83.649,83.621,4.32786258]
[1773034280753,4.17854858,83.648,83.612,11.96000574]
[1773034281384,4.17854858,83.648,83.613,4.32786258]
[1773034281741,4.17854858,83.649,83.613,4.32786258]
[1773034281964,4.17854858,83.649,83.612,41.86002009]
[1773034281965,4.17854858,83.649,83.621,4.32786258]
[1773034283161,4.17854858,83.659,83.623,4.32786258]
[1773034283481,4.17854858,83.659,83.63,16.10289023]
[1773034283643,4.17854858,83.659,83.63,4.32786258]
[1773034283845,4.17854858,83.659,83.63,16.10289023]
[1773034284265,41.8315027,83.669,83.622,16.28643807]
[1773034284266,4.17854858,83.649,83.622,16.28643807]
[1773034286344,4.17854858,83.657,83.631,4.32786258]
[1773034286546,4.17854858,83.668,83.64,16.10289023]
[1773034286764,4.17854858,83.667,83.64,4.32786258]
[1773034288369,4.17854858,83.649,83.617,4.32786258]
[1773034288553,4.17854858,83.649,83.618,11.95914755]
[1773034289159,4.17854858,83.649,83.614,11.95961401]
[1773034289361,4.17854858,83.649,83.615,4.32786258]
[1773034290368,16.13328882,83.649,83.621,11.9587185]
[1773034290572,4.17854858,83.659,83.622,4.32786258]
[1773034291472,4.17854858,83.649,83.622,4.32786258]
[1773034291673,4.17854858,83.668,83.622,4.32786258]
[1773034291979,4.17854858,83.649,83.616,16.28729618]
[1773034292475,4.17854858,83.649,83.621,4.32786258]
[1773034292677,4.17854858,83.655,83.63,16.10289023]
[1773034292976,4.17854858,83.655,83.631,4.32786258]
[1773034293679,11.95348777,83.658,83.631,4.32786258]
[1773034293882,0.1,83.67,83.641,4.36090292]
[1773034294077,0.1,83.67,83.64,11.77502765]
[1773034294078,11.95185791,83.669,83.64,4.36090292]
[1773034294263,4.21312863,83.67,83.64,4.36090292]
[1773034294264,4.21312863,83.67,83.641,4.36090292]
[1773034294460,4.21312863,83.67,83.643,4.36090292]
[1773034294960,11.95185791,83.669,83.643,4.36090292]
[1773034295166,4.11312863,83.668,83.643,4.36090292]
[1773034296583,11.95185791,83.669,83.634,29.89199503]
[1773034296584,4.11312863,83.666,83.634,4.36090292]
[1773034296776,41.83250265,83.667,83.621,4.36090292]
[1773034296777,4.11312863,83.659,83.621,4.36090292]
[1773034296979,4.11312863,83.659,83.63,11.77502765]
[1773034297177,4.11312863,83.659,83.629,4.36090292]
[1773034297477,0.1,83.67,83.641,4.36090292]
[1773034297478,4.11312863,83.668,83.641,4.36090292]
[1773034298370,0.1,83.67,83.65,11.77502765]
[1773034298577,0.1,83.67,83.651,4.36090292]
[1773034298772,0.1,83.67,83.652,4.36090292]
[1773034300284,0.1,83.67,83.651,11.95433155]
[1773034300285,7.49965372,83.675,83.661,4.36090292]
[1773034301398,7.49965372,83.675,83.662,11.95285792]
[1773034301592,0.1,83.69,83.663,4.36090292]
[1773034301789,0.1,83.69,83.662,11.95285792]
[1773034301790,0.1,83.69,83.671,4.36090292]
[1773034301963,3.69383402,83.733,83.691,4.36090292]
[1773034301964,11.94348282,83.728,83.691,4.36090292]
[1773034302165,47.1001106,83.82,83.662,41.83500274]
[1773034302166,4.11312863,83.744,83.711,4.36090292]
[1773034302370,4.11312863,83.744,83.72,11.77502765]
[1773034302569,4.11312863,83.744,83.711,4.36090292]
[1773034302570,1e-08,83.746,83.731,4.36090292]
[1773034302868,4.11312863,83.775,83.741,4.36090292]
[1773034303069,4.11312863,83.775,83.718,0.28432314]
[1773034303070,4.11312863,83.769,83.73,11.77502765]
[1773034303280,4.11312863,83.769,83.73,16.13593057]
[1773034303479,4.11312863,83.768,83.732,4.36090292]
[1773034303876,4.11312863,83.768,83.74,11.77502765]
[1773034304085,4.11312863,83.78,83.75,8.39e-06]
[1773034304286,4.11312863,83.778,83.732,0.28432314]
[1773034304476,4.11312863,83.769,83.74,11.77502765]